Cogmind - Beta 16 @@@ ROGUE MODE // 2026.01.17 @ 19:16:48 Player: DreamCore Result: Destroyed by 0L-G7L(R) with Subdweller Beam Cannon Performance ------------- Evolutions (0) 0 Regions Visited (3) 600 Robots Destroyed (26) 130 Value Destroyed (681) 681 Prototype IDs (0) 0 Alien Tech Used (0) 0 Bonus (0) 0 TOTAL SCORE: 1411 Bonus ------- None Cogmind --------- Core Integrity 0/250 Matter 228/300 Energy 158/160 System Corruption 0% Temperature Hot (224) Movement Treading (480) Ox4 Location -10/Subcaves Parts ------- > --- POWER (1) -------- Light Nuclear Core > --- PROPULSION (2) --- Light Treads > --- UTILITY (2) ------ Huge Storage Unit Signal Interpreter > --- WEAPON (2) ------- Assault Rifle Minigun > --- INVENTORY (25) --- Ion Engine Ion Engine Ion Engine Aluminum Leg Aluminum Leg Heat Sink Improved Heat Sink Huge Storage Unit Structural Scanner Sensor Array Improved Terrain Scanner Terrain Scan Processor Terrain Scan Processor Targeting Computer Weapon Shielding Improved Weapon Shielding Reflective Plating Hacking Suite Tractor Beam Particle Gun Assault Rifle Improved Grenade Launcher Mining Laser Peak State ------------ > --- POWER ------------ Ion Engine > --- PROPULSION ------- Light Treads Light Treads > --- UTILITY ---------- Improved Heat Sink Huge Storage Unit > --- WEAPON ----------- Particle Gun Minigun > --- INVENTORY -------- Ion Engine Ion Engine Ion Engine Ion Engine Aluminum Leg Aluminum Leg Heat Sink Huge Storage Unit Structural Scanner Structural Scanner Sensor Array Signal Interpreter Improved Terrain Scanner Terrain Scan Processor Terrain Scan Processor Targeting Computer Weapon Shielding Weapon Shielding Reflective Plating Hacking Suite Tractor Beam Assault Rifle Assault Rifle Improved Grenade Launcher Mining Laser [Rating: 15] Favorites ----------- Power Ion Engine Engine Ion Engine Power Core Light Nuclear Core Propulsion Light Treads Treads Light Treads Leg Aluminum Leg Utility Huge Storage Unit Device Heat Sink Storage Huge Storage Unit Processor Signal Interpreter Protection Weapon Shielding Weapon Assault Rifle Energy Gun Particle Gun Ballistic Gun Assault Rifle Launcher Grenade Launcher Build | -11 -10 -10 -10 ------- Run | Yrd Mat Min Sub Slots Evolved . | . . . . Power . | . . . . Propulsion . | . . . . Utility . | . . . . Weapon . | . . . . Parts Attached 23 | 1 13 9 . Power 5 | . 3 2 . Engine 4 | . 3 1 . Core 1 | . . 1 . Reactor . | . . . . Propulsion 5 | . 4 1 . Treads 3 | . 2 1 . Leg 2 | . 2 . . Wheel . | . . . . Hover . | . . . . Flight . | . . . . Utility 6 | . 3 3 . Device 3 | . 2 1 . Storage 1 | . 1 . . Processor 1 | . . 1 . Hackware . | . . . . Protection 1 | . . 1 . Artifact . | . . . . Weapon 7 | 1 3 3 . Energy Gun 2 | 1 1 . . Energy Cannon . | . . . . Ballistic Gun 4 | . 1 3 . Ballistic Cannon . | . . . . Launcher 1 | . 1 . . Special Weapon . | . . . . Impact Weapon . | . . . . Slashing Weapon . | . . . . Piercing Weapon . | . . . . Special Melee Weapon . | . . . . Unidentified Prototypes . | . . . . Parts Lost 4 | . 2 1 1 Power . | . . . . Propulsion 2 | . . 1 1 Utility . | . . . . Weapon 2 | . 2 . . Highest Loss Streak 1 | . 1 1 1 To Critical Strikes . | . . . . Average Backups 20 | 6 16 24 23 Power 3 | 1 2 4 3 Propulsion 3 | 4 4 2 2 Utility 10 | . 6 14 14 Weapon 3 | 1 3 4 4 Tool/Special . | . . . . Unused Backups 33 | . 11 5 17 Power 7 | . 4 . 3 Propulsion 5 | . 4 1 . Utility 16 | . 1 3 12 Weapon 5 | . 2 1 2 Tool/Special . | . . . . Average Slot Usage (%) 99 | . 99 100 100 Engine 9 | . 14 6 . Core 4 | . . 7 14 Treads 25 | . 22 28 28 Leg 2 | . 5 . . Device 9 | . 13 5 . Storage 14 | . 14 14 14 Processor 3 | . . 6 14 Energy Gun 10 | . 16 5 . Ballistic Gun 17 | . 10 22 28 Peak Build Rating 15 | 6 10 15 14 Average Rating 10 | 6 8 12 13 On Entrance 9 | 6 6 10 14 Avg Prop Armor Cover (%) . | . . . . Naked Turns . | . . . . Heaviest Build 92 | 12 92 92 90 Greatest Support 40 | 20 40 40 40 Greatest Overweight (x) 2 | . 2 2 2 Average Overweight (x) 1 | . 1 2 2 Largest Inventory Capacity 25 | 8 25 25 25 Average Capacity 23 | 8 21 25 25 Most Carried 25 | 6 25 25 23 Average Carried 20 | 6 16 24 23 Final Capacity 25 | 8 25 25 25 Final Carried 25 | 6 25 24 23 Class Distribution -------------------- 100% | Mutant Dominant Class ---------------- Mutant | -10/Materials Mutant | -10/Mines Mutant | -10/Subcaves Resources | -11 -10 -10 -10 ----------- Run | Yrd Mat Min Sub Matter Collected 598 | 210 226 162 . Remotely . | . . . . Salvage Created 827 | . 647 144 36 Parts 48 | . 35 13 . Haulers Intercepted 1 | . 1 . . Recyclers Shooed . | . . . . Parts Field Recycled . | . . . . Retrieved Matter . | . . . . Parts Self-Destructed 5 | . . . 5 Prevented . | . . . . Parts Restored . | . . . . Kills | -11 -10 -10 -10 ------- Run | Yrd Mat Min Sub Combat Hostiles Destroyed 19 | . 13 5 1 Guns 19 | . 13 5 1 Classes Destroyed 8 | . 6 1 1 Builder 2 | . 1 1 . Tunneler 1 | . . 1 . Hauler 1 | . 1 . . Operator 1 | . 1 . . Watcher 2 | . 2 . . Swarmer 5 | . 2 3 . Grunt 13 | . 11 2 . Subdweller 1 | . . . 1 Best Kill Streak 3 | . 3 3 1 Combat Bots Only 3 | . 3 3 1 Max Kills in Single Turn 2 | . 2 1 1 Gunslinging . | . . . . Exploded . | . . . . Melee . | . . . . Uniques/NPCs Destroyed . | . . . . Combat | -11 -10 -10 -10 -------- Run | Yrd Mat Min Sub Hostile Shots Fired 114 | . 82 18 14 Missed 30 | . 24 3 3 Hits 84 | . 58 15 11 Projectile 84 | . 58 15 11 Critical Strikes 1 | . . . 1 Damage Taken 1188 | . 736 157 295 Core 274 | . 176 15 83 Absorbed by Shields . | . . . . Core Remaining (%) 100 | 100 . . . Volleys Fired 102 | . 73 18 11 Largest 2 | . 2 2 2 Hottest 85 | . 85 85 45 Shots Fired 168 | . 111 35 22 Gun 167 | . 110 35 22 Cannon . | . . . . Launcher 1 | . 1 . . Special . | . . . . Kinetic 77 | . 38 17 22 Thermal 56 | . 38 18 . Explosive 1 | . 1 . . Electromagnetic 34 | . 34 . . Robot Hit Streak 23 | . 13 6 23 Robot Miss Streak 3 | . 3 3 . Penetration Max . | . . . . Secondary Targets 3 | . 3 . . Max Gunslinging Chain 1 | . 1 . . Shots Hit Robots 114 | . 74 19 21 Core Hits 47 | . 34 9 4 Critical Kills . | . . . . Critical Parts Destroyed . | . . . . Critical Strikes 5 | . 4 1 . Burn 5 | . 4 1 . Melee Attacks . | . . . . Impact . | . . . . Slashing . | . . . . Piercing . | . . . . Sneak Attacks . | . . . . Combat Hostiles . | . . . . Follow-up Attacks . | . . . . Damage Inflicted 1667 | . 1103 289 275 Guns 1607 | . 1067 265 275 Cannons . | . . . . Explosions 21 | . 21 . . Melee . | . . . . Ramming 39 | . 15 24 . Kinetic 757 | . 360 122 275 Thermal 528 | . 385 143 . Explosive . | . . . . Electromagnetic 343 | . 343 . . Impact . | . . . . Slashing . | . . . . Piercing . | . . . . Highest Corruption . | . . . . Average Corruption . | . . . . Corruption Purged . | . . . . Corruption Blocked . | . . . . Overload Shots . | . . . . Overflow Damage . | . . . . Projectiles . | . . . . Explosions . | . . . . Melee . | . . . . Knockbacks 2 | . 1 1 . Impact 2 | . 1 1 . Kinetic . | . . . . Secondary . | . . . . Self-Inflicted Damage 15 | . 15 . . Shots 1 | . 1 . . Rammed 4 | . 2 2 . Targets Rammed 4 | . 2 2 . Kicked . | . . . . Crushed . | . . . . Highest Temperature 253 | . 145 20 253 Average Temperature 39 | . 41 12 234 Received Heat Transfer 779 | . 363 57 359 Siege Activations . | . . . . Martial Activations . | . . . . Shielding Activations . | . . . . Robots Disrupted . | . . . . Combat Hostiles . | . . . . Robots Corrupted . | . . . . Combat Hostiles . | . . . . Parts Fried 3 | . 3 . . Impact Corruptions . | . . . . Robots Melted . | . . . . Combat Hostiles . | . . . . Parts Melted 7 | . 4 1 2 Heat Transferred 1789 | . 1382 407 . Parts Sabotaged . | . . . . Parts Stolen . | . . . . Parts Stripped . | . . . . Power Chain Reactions 1 | . 1 . . Alert | -11 -10 -10 -10 ------- Run | Yrd Mat Min Sub Maximum Alert Level . | . . . . Low Security (%) 100 | 100 100 100 . Level 1 . | . . . . Level 2 . | . . . . Level 3 . | . . . . Level 4 . | . . . . Level 5 . | . . . . High Security . | . . . . Max Security . | . . . . Peak Influence 84 | . 84 64 . Initial 10 | . . 10 . Average 12 | . 21 3 . Influence Increases 563 | . 433 130 . Destroy 0b10 Robot/C 360 | . 260 100 . Destroy 0b10 Robot/NC 35 | . 25 10 . Destroy Leader 96 | . 76 20 . Successful Hack 10 | . 10 . . Disable Machine 45 | . 45 . . Destroy Structure 17 | . 17 . . Influence Decreases 563 | . 405 158 . Entered New Map 18 | . . 18 . Time Decay 525 | . 385 140 . Lost Part 20 | . 20 . . Squads Dispatched 5 | . 4 1 . Investigation 2 | . 1 1 . Extermination . | . . . . Reinforcement 3 | . 3 . . Assault . | . . . . Garrison . | . . . . Intercept . | . . . . Searches Triggered . | . . . . Construction Impeded . | . . . . Haulers Reinforced . | . . . . Active Scanning Responses . | . . . . Cargo Convoy Interrupts . | . . . . Stealth | -11 -10 -10 -10 --------- Run | Yrd Mat Min Sub Distress Signals 3 | . 3 . . Communications Jammed . | . . . . Distress Signals . | . . . . Times Spotted 28 | . 21 5 2 Peak Tracking Total 3 | . 3 3 2 Tactical Retreats . | . . . . Traps | -11 -10 -10 -10 ------- Run | Yrd Mat Min Sub Traps Triggered 1 | . 1 . . Indirectly . | . . . . Trap Hack Attempts . | . . . . Triggered . | . . . . Disarmed . | . . . . Reprogrammed . | . . . . Reused . | . . . . Traps Extracted . | . . . . Installed . | . . . . Triggered . | . . . . Machines | -11 -10 -10 -10 ---------- Run | Yrd Mat Min Sub Machines Disabled 3 | . 3 . . Max in Single Turn 1 | . 1 . . Machines Repaired . | . . . . Machines Dismantled . | . . . . Machines Sabotaged . | . . . . Overloaded Fab Kills . | . . . . Hacking | -11 -10 -10 -10 --------- Run | Yrd Mat Min Sub Machines Accessed 6 | . 5 1 . Terminals 3 | . 3 . . Fabricators . | . . . . Repair Stations . | . . . . Recycling Units 2 | . 2 . . Scanalyzers . | . . . . Garrison Access . | . . . . Total Hacks 14 | . 13 1 . Successful 7 | . 6 1 . Failed 7 | . 7 . . Catastrophic . | . . . . Database Lockouts . | . . . . Manual 11 | . 11 . . Terminals 9 | . 9 . . Fabricators . | . . . . Repair Stations . | . . . . Recycling Units 4 | . 4 . . Scanalyzers . | . . . . Garrison Access . | . . . . Terminal Hacks 2 | . 1 1 . Robot Analysis 1 | . 1 . . Open Door 1 | . . 1 . Fabricator Hacks . | . . . . Repair Station Hacks . | . . . . Recycling Unit Hacks 1 | . 1 . . Report Inventory 1 | . 1 . . Scanalyzer . | . . . . Garrison Access Hacks . | . . . . Unauthorized Hacks 4 | . 4 . . Terminals 1 | . 1 . . Botnet 1 | . 1 . . Fabricators . | . . . . Repair Stations . | . . . . Recycling Units 3 | . 3 . . Reject 2 | . 2 . . Mask 1 | . 1 . . Scanalyzers . | . . . . Garrison Access . | . . . . Data Cores Recovered . | . . . . Used . | . . . . Hacking Detections 3 | . 3 . . Full Trace Events . | . . . . Feedback Events . | . . . . Feedback Blocked . | . . . . Robot Schematics Acquired . | . . . . Robots Built . | . . . . Authchips . | . . . . Time . | . . . . Total Robot Build Rating . | . . . . Part Schematics Acquired . | . . . . Parts Built . | . . . . Authchips . | . . . . Time . | . . . . Total Part Build Rating . | . . . . Part Studies Acquired . | . . . . Parts Repaired . | . . . . Time . | . . . . Parts Recycled . | . . . . Recycled Matter . | . . . . Retrieved Matter . | . . . . Retrieved Components . | . . . . Parts Scanalyzed . | . . . . Part Schematics Acquired . | . . . . Parts Damaged . | . . . . Bothacking | -11 -10 -10 -10 ------------ Run | Yrd Mat Min Sub Used RIF Installer . | . . . . Robots Hacked . | . . . . Non-combat . | . . . . Combat . | . . . . Robot Hacks Applied . | . . . . Relay Couplers Released . | . . . . Fabnet Peak Effective % . | . . . . Robots Rewired . | . . . . Allies Hacked . | . . . . Hacks Repelled . | . . . . Allies | -11 -10 -10 -10 -------- Run | Yrd Mat Min Sub Total Allies . | . . . . Largest Group . | . . . . Highest-Rated Group . | . . . . Highest-Rated Ally . | . . . . Total Orders . | . . . . Ally Attacks . | . . . . Total Damage . | . . . . Kills . | . . . . Allies Corrupted . | . . . . Allies Melted . | . . . . Intel | -11 -10 -10 -10 ------- Run | Yrd Mat Min Sub Active Infowar (turns) 436 | . 436 . . Terrain 436 | . 436 . . Robot Analysis Total 1 | . 1 . . Derelict Logs Recovered 2 | . . 2 . Drone Launches . | . . . . Drone Recoveries . | . . . . Exploration | -11 -10 -10 -10 ------------- Run | Yrd Mat Min Sub Turns Passed 5531 | 3 2578 2693 257 Spaces Moved 1707 | 2 832 804 69 Core . | . . . . Treads 1458 | . 585 804 69 Legs 249 | 2 247 . . Wheels . | . . . . Hover . | . . . . Flight . | . . . . Fastest Speed 120 | 120 120 320 320 Average Speed 290 | 120 260 320 320 Slowest Speed 320 | 120 320 320 320 Overloaded Moves . | . . . . Propulsion Burnouts . | . . . . Robots Hopped . | . . . . Potential Cave-ins . | . . . . Cave-ins Triggered . | . . . . Exploration Rate (%) 48 | 1 81 103 7 Regions Visited 3 Branch Regions 2 Pre-discovered Areas 1 | . . 1 . Known Exits Taken 1 | . . 1 . Unknown Exits Taken 2 | 1 1 . . Scrap Searched 3 | . . 3 . Spaces Dug . | . . . . Terrain Destroyed 16 | . 16 . . Melee . | . . . . Projectile . | . . . . AOE 16 | . 16 . . Terrain Rammed . | . . . . Walls Destroyed . | . . . . Machines Disabled . | . . . . Actions | -11 -10 -10 -10 --------- Run | Yrd Mat Min Sub Total 2113 | 2 1131 892 88 Wait 221 | . 171 43 7 Move 1704 | 1 831 803 69 Hop . | . . . . Pick Up 36 | . 29 7 . Fast Attach 1 | . 1 . . Attach 4 | . 3 1 . Detach . | . . . . Swap 18 | 1 9 8 . Drop 23 | . 12 10 1 Fire 102 | . 73 18 11 Melee . | . . . . Ram . | . . . . Kick . | . . . . Crush 4 | . 2 2 . Escape Stasis . | . . . . Rewire . | . . . . Trap . | . . . . Miscellaneous . | . . . . Route ------- -11/Scrapyard -10/Materials (discovered 4 exits: *Mat x2 / *Min x2) -10/Mines (discovered 3 exits: *Mat x2 / *Sub) -10/Subcaves History --------- Turn | Location | Event 1 | -11/Scrapyard | Discovered new exit (range 1) 4 | -11/Scrapyard | Entered Materials 138 | -10/Materials | Discovered new exit (range 15) 310 | -10/Materials | Build established: Mutant 431 | -10/Materials | Discovered new exit (range 9) 481 | -10/Materials | Core integrity fell below 50% 1899 | -10/Materials | Discovered new exit (range 13) 2298 | -10/Materials | Discovered new exit (range 8) 2582 | -10/Materials | Entered Mines 2583 | -10/Mines | Learned location of Storage (-8) 3172 | -10/Mines | Learned Materials interactive machine intel 3597 | -10/Mines | Met a Derelict shopkeep closing up shop 3808 | -10/Mines | Discovered new exit (range 15) 4006 | -10/Mines | Discovered new exit (range 4) 4021 | -10/Mines | Identified exit to Materials 4331 | -10/Mines | Learned Materials stockpile data 5243 | -10/Mines | Discovered new exit (range 6) 5259 | -10/Mines | Identified exit to Subcaves 5275 | -10/Mines | Entered Subcaves 5276 | -10/Subcaves | Approached by a straggling Scientist 5508 | -10/Subcaves | Core integrity fell below 20% 5532 | -10/Subcaves | Destroyed by 0L-G7L(R) with Subdweller Beam Cannon Last Messages --------------- GOAL=ESCAPE 05275_ Dropped Ion Engine. 05276_ EP-TIB(c): "Thank the algorithms! I was beginning to lose hope I'd never make it past all the Subs lurking out here." 05276_ Subatomizers dissect the Ion Engine. 05279_ EP-TIB(c): "Hey, let me tag along and I can get us both out of this nasty situation. At least I think I can... The group I got separated from was talking about a shortcut back to the UFD." 05289_ Subatomizers dissect the Ion Engine. EP-TIB(c): "I think it's somewhere west of here" 05328_ Subatomizers dissect the Ion Engine. EP-TIB(c): "I think it's somewhere west of here" EP-TIB(c): "I think it's somewhere northwest of here" 05510_ Sub. Optics melted. 05510_ Disposable Heat Sink melted. 05510_ J2-DJI(R) destroyed. 05517_ 0L-G7L(R) affixes Scrap Shield Fragment to Scrap Shield. EP-TIB(c): "I think it's somewhere northwest of here" 05530_ Lgt. Treads destroyed. 05530_ Critical hit (Meltdown: +260). Map ----- +----------------------------------------------------+ | ????????????????????????????????????????????????# | | ????????????????????????????????????????????????# | | ???????????????????????????????????????????????## | | ????????????????????????????????????????????#### | | ????????????????????????????????????????????# | | ?????????????????????????????????????????##?# | | ????????????????????????????????????????## ## | | ????????????????????????????????????????# | | ????????????????????????????????????????## | | ?????????????????????????????????????????# | | ?????????????????????????????????????????### | | ???????????????????????????????????????????## | | ????????????????????????????????????????????## ## | | ?????????????????????????????????????????????# ## | | ?????????????????????????????????????????????# ## | | ????????????????????????????????????????????## ## | | ????????????????????????????????????????????# ## | | ????????????????????????????????????????????## # | | ????????????????????????????????????????????# # | | ????????????????????????????????????????????## | | ????????????????????????????????????????????# | | ???????????????????????########?????????????### | | ????????????????????##?#" ##??????????????#### | | ?????????????# % ### #" #????????????????## | | ????????? % % %R #????????????????# | | ?????????????# ## ## # @ #####????????????????## | | ???????????????????????# " ######???????????????## | | ???????????????????????##" ## ##########??????# | | ????????????????????????## c ## # #???#### | | ?????????????????????????## """ ##### | | ??????????????????????????## """"#"" ## | | ???????????????????????????## ""###"## ## | | ????????????????????????????## "##?#### | | ?????????????????????????????####?????# | | ??????????????????????????????????????## # | | ???????????????????????????????????????#### #### | | ?????????????????????????????????????????? ##??? | | ????????????????????????????????????????? #???? | | ???????????????????????????????????????? ???? | | ??????????????????????????????????????? ??? | | ?????????????????????????????????????? ?? | | ?????????????????????????????????????? ?? | | ?????????????????????????????????????? ##? | | ??????????????????????????????????????? ###?? | | ???????????????????????????????????????? # ???? | | ?????????????????????????????????????????? ? ???? | | ?????????????????????????????????????????? ? ???? | | ?????????????????????????????????????????????????? | | ?????????????????????????????????????????????????? | | ?????????????????????????????????????????????????? | +----------------------------------------------------+ Best States ------------- Heat Dissipation 39 Energy Generation 14 Energy Capacity 250 Matter Stores 300 Matter Capacity 300 Sight Range 16 Terrain Scan Range 14 Terrain Scan Density 10 Weapon Shielding 33 Evasion (%) 55 Recoil Reduction 2 Item Schematics ----------------- None Robot Schematics ------------------ None Fabricated ------------ Nothing Repaired ---------- Nothing Studied --------- None Alien Tech Used ----------------- None Achievements -------------- Myspace Challenges ------------ None Game ------ Seed ScrapAssemblyBroadsword Manual? 0 Play Time 00:26:57 Cumulative 57.2 hours Start 2026.01.17 @ 18:45:44 End 2026.01.17 @ 19:16:48 Sessions 1 Manual Loads 0 Difficulty Rogue Special Mode None Game No. 68 Rogue 68 Adventurer 0 Explorer 0 Win Type - Total 1 Types 1/0/0/0/0/0/0/0/0/0 Lore% 25 Gallery% 33 Achievement% 24 Wizard Run 0 Options --------- Layout 0 ASCII 0 Keyboard 0 Movement Mouse Keybinds 0 Fullscreen 0 Font 16/SmallcapsGlow Map View 88x55 Zoom Use 0% Tactical HUD 1 Map Filters NONE Filters NONE Steam 1 RUN: aa2cb711-ee63-4e12-aa9e-afeb08da78df